bitfinex-derivatives/quotes_BNBF0:USTF0_20250810
["timestamp","ask_amount","ask_price","bid_price","bid_amount"]
[1754814520103,0.21727322,801.6,799.23,1.158]
[1754814520104,1.11626699,800.13,799.23,1.158]
[1754814520306,1.11626699,800.14,799.23,1.158]
[1754814520706,1.11626699,799.99,799.23,1.158]
[1754814521207,1.67738548,800.21,799.23,1.158]
[1754814521208,1.11626699,799.98,799.23,1.158]
[1754814521408,2.73869967,801.11,799.23,1.158]
[1754814521409,1.11626699,799.97,799.23,1.158]
[1754814523008,1.11626699,799.98,799.23,1.158]
[1754814523403,1.11626699,800.01,799.23,1.158]
[1754814523805,1.11626699,800.06,799.23,1.158]
[1754814524408,1.11626699,799.92,799.23,1.158]
[1754814524609,1.67738548,800.11,799.23,1.158]
[1754814524610,1.11626699,799.93,799.23,1.158]
[1754814525312,1.11626699,799.92,799.23,1.158]
[1754814526411,1.11626699,799.98,799.23,1.158]
[1754814527913,1.11626699,799.95,799.23,1.158]
[1754814528216,1.11626699,799.96,799.23,1.158]
[1754814528514,1.11626699,799.95,799.23,1.158]
[1754814529314,1.11626699,799.94,799.23,1.158]
[1754814529514,1.11626699,799.95,799.23,1.158]
[1754814530512,1.11626699,799.94,799.23,1.158]
[1754814531017,1.11626699,799.93,799.23,1.158]
[1754814531311,1.11626699,799.92,799.23,1.158]
[1754814531515,1.11626699,799.93,799.23,1.158]
[1754814532315,1.11626699,799.92,799.23,1.158]
[1754814532811,1.11626699,799.9,799.23,1.158]
[1754814533416,1.11626699,799.89,799.23,1.158]
[1754814533615,1.11626699,799.86,799.23,1.158]
[1754814533810,1.11626699,799.85,799.23,1.158]
[1754814534012,1.11626699,799.85,799.22,0.21731528]
[1754814534518,1.11626699,799.82,799.22,0.21731528]
[1754814534716,1.11626699,799.83,799.22,0.21731528]
[1754814535417,1.11626699,799.82,799.22,0.21731528]
[1754814536219,1.11626699,799.78,799.22,0.21731528]
[1754814536415,1.11626699,799.77,799.22,0.21731528]
[1754814536620,1.11626699,799.79,799.23,1.195]
[1754814537517,1.11626699,799.78,799.23,1.195]
[1754814538117,2.73869967,800.6,799.23,1.195]
[1754814538118,1.11626699,799.79,799.23,1.195]
[1754814538316,1.11626699,799.78,799.23,1.195]
[1754814538821,1.11626699,799.79,799.23,1.195]
[1754814539419,1.11626699,799.77,799.23,1.195]
[1754814540720,1.11626699,799.76,799.23,1.195]
[1754814541425,1.11626699,799.79,799.23,1.195]
[1754814542220,1.11626699,799.78,799.23,1.195]
[1754814543024,1.11626699,799.77,799.23,1.195]
[1754814544424,1.11626699,799.76,799.23,1.195]
[1754814544622,1.11626699,799.75,799.23,1.195]
[1754814544823,1.11626699,799.77,799.23,1.195]
[1754814545020,1.11626699,799.76,799.23,1.195]
[1754814545423,1.11626699,799.93,799.23,1.195]
[1754814546526,1.11626699,799.92,799.23,1.195]
[1754814547427,1.11626699,799.91,799.23,1.195]
[1754814547721,1.11626699,799.9,799.23,1.195]
[1754814548622,1.11626699,799.86,799.23,1.195]
[1754814549426,1.11626699,799.85,799.23,1.195]
[1754814550521,1.11626699,799.84,799.23,1.195]
[1754814551326,1.11626699,799.82,799.23,1.195]
[1754814552127,1.11626699,799.85,799.23,1.195]
[1754814552628,1.11626699,799.83,799.23,1.195]
[1754814553325,1.11626699,799.81,799.23,1.195]
[1754814554130,1.11626699,799.82,799.23,1.195]
[1754814554425,1.11626699,799.81,799.23,1.195]
[1754814555227,1.11626699,799.7,799.23,1.195]
[1754814556335,1.11626699,799.69,799.23,1.195]
[1754814556934,1.11626699,799.7,799.23,1.195]
[1754814558435,1.11626699,799.69,799.23,1.195]
[1754814558841,1.11626699,799.63,799.23,1.195]
[1754814559939,1.11626699,799.67,799.23,1.195]
[1754814560144,0.89899377,799.78,799.23,1.195]
[1754814560346,1.67738548,799.98,799.23,1.195]
[1754814561139,1.67738548,799.99,799.23,1.195]
[1754814563045,1.67738548,800.0,799.29,0.21724813]
[1754814563246,2.73869967,800.77,799.29,0.21724813]
[1754814563247,1.67738548,800.01,799.29,0.21724813]
[1754814563545,1.67738548,800.0,799.29,0.21724813]
[1754814564047,1.67738548,800.01,799.29,0.21724813]
[1754814565345,1.67738548,800.02,799.29,0.21724813]
[1754814567554,1.67738548,800.01,799.29,0.21724813]
[1754814568053,1.67738548,799.98,799.3,1.703]
[1754814569048,1.67738548,799.95,799.3,1.703]
[1754814569349,1.67738548,799.96,799.3,1.703]
[1754814569648,1.67738548,800.05,799.3,1.703]
[1754814569853,1.67738548,800.06,799.3,1.703]
[1754814570354,1.67738548,800.07,799.3,1.703]
[1754814571255,1.67738548,800.08,799.3,1.703]
[1754814571451,1.67738548,800.07,799.3,1.703]
[1754814571653,1.67738548,800.21,799.3,1.703]
[1754814572056,1.67738548,800.21,799.38,0.5]
[1754814573052,1.67738548,800.21,799.39,0.5]
[1754814573258,1.67738548,800.22,799.39,0.5]
[1754814573457,1.67738548,800.19,799.39,0.5]
[1754814574163,1.67738548,800.2,799.39,0.5]
[1754814575361,1.67738548,800.21,799.39,0.5]
[1754814576263,1.67738548,800.22,799.39,0.5]
[1754814576464,1.67738548,800.21,799.39,0.5]
[1754814577262,1.67738548,800.22,799.39,0.5]
[1754814579263,1.67738548,800.23,799.39,0.5]
[1754814579467,1.67738548,800.21,799.39,0.5]
[1754814580664,1.67738548,800.19,799.39,0.5]
[1754814581365,1.67738548,800.2,799.39,0.5]
[1754814582265,1.67738548,800.21,799.39,0.5]
[1754814582464,1.67738548,800.2,799.39,0.5]
[1754814584470,1.67738548,800.21,799.39,0.5]
[1754814585370,1.67738548,800.22,799.39,0.5]
[1754814585772,1.67738548,800.2,799.39,0.5]
[1754814586872,1.67738548,800.19,799.39,0.5]
[1754814587474,1.67738548,800.2,799.39,0.5]
[1754814589972,1.11624943,800.04,799.39,0.5]
[1754814590273,1.11624943,800.05,799.39,0.5]
[1754814590473,1.11624943,799.99,799.39,0.5]
[1754814591377,1.11624943,800.0,799.39,0.5]
[1754814592574,1.11624943,800.02,799.39,0.5]
[1754814593278,1.11624943,800.03,799.39,0.5]
[1754814593778,1.11624943,800.04,799.39,0.5]
[1754814594177,1.11624943,800.06,799.39,0.5]
[1754814594873,1.11624943,800.05,799.39,0.5]
[1754814595273,1.11624943,800.06,799.39,0.5]
[1754814595975,1.11624943,800.07,799.39,0.5]
[1754814598079,1.11624943,800.1,799.39,0.5]
[1754814600180,1.67380293,800.97,799.55,1.12174398]
[1754814600380,2.73869967,801.6,799.55,1.12174398]
[1754814600681,2.73869967,801.62,799.55,1.12174398]
[1754814601182,2.73869967,801.62,799.39,2.18261597]
[1754814601183,2.73869967,801.7,799.63,1.12174398]
[1754814602379,2.73869967,801.7,799.47,1.68261597]
[1754814602380,2.73869967,801.67,799.64,1.12174398]
[1754814602684,2.73869967,801.67,799.83,1.12174398]
[1754814602880,2.73869967,801.85,799.83,1.12174398]
[1754814603083,0.62124435,801.84,799.83,1.12174398]
[1754814603290,3.35994402,801.83,799.83,1.12174398]
[1754814603480,0.62124435,801.82,799.83,1.12174398]
[1754814603784,0.62124435,801.81,799.84,1.12174398]
[1754814603985,0.62124435,801.8,799.84,1.12174398]
[1754814604280,0.62124435,801.79,799.86,1.12174398]
[1754814604483,2.73869967,801.73,799.87,1.12174398]
[1754814604680,2.73869967,801.73,799.86,1.12174398]
[1754814605084,2.73869967,801.73,799.72,1.68261597]
[1754814605085,2.73869967,801.73,799.85,1.12174398]
[1754814605582,2.73869967,801.76,799.79,1.12174398]
[1754814605783,0.62128687,801.75,799.79,1.12174398]
[1754814605986,0.21706858,801.94,799.79,1.12174398]
[1754814606183,0.62128354,801.93,799.79,1.12174398]
[1754814606386,0.62128354,801.92,799.79,1.12174398]
[1754814606587,0.62128354,801.91,799.79,1.12174398]
[1754814606787,0.62128354,801.9,799.79,1.12174398]
[1754814606985,0.62128354,801.89,799.79,1.12174398]
[1754814607184,0.62128354,801.88,799.8,1.12174398]
[1754814607485,0.62128354,801.87,799.82,1.12174398]
[1754814607682,0.62128354,801.86,799.82,1.12174398]
[1754814607883,0.62128354,801.85,799.82,1.12174398]
[1754814608084,0.62128354,801.84,799.82,1.12174398]
[1754814608285,0.21706858,801.94,799.82,1.12174398]
[1754814608286,0.62128354,801.83,799.82,1.12174398]
[1754814608586,0.62128354,801.82,799.83,1.12174398]
[1754814608786,0.62128354,801.81,799.83,1.12174398]
[1754814608985,0.62128354,801.8,799.83,1.12174398]
[1754814609186,0.62128354,801.79,799.83,1.12174398]
[1754814609386,0.21706858,801.94,799.83,1.12174398]
[1754814609589,0.62139216,801.93,799.83,1.12174398]
[1754814609789,0.62139216,801.92,799.83,1.12174398]
[1754814609986,0.62139216,801.91,799.77,1.12174398]
[1754814610187,0.62139216,801.9,799.78,1.12174398]
[1754814610390,0.62139216,801.89,799.78,1.12174398]
[1754814610590,0.62139216,801.88,799.78,1.12174398]
[1754814610787,0.62139216,801.87,799.78,1.12174398]
[1754814610986,0.62139216,801.86,799.78,1.12174398]
[1754814611287,0.62139216,801.85,799.78,1.12174398]
[1754814611487,0.21706858,801.94,799.78,1.12174398]
[1754814611488,0.62139216,801.84,799.78,1.12174398]
[1754814611690,0.21706858,801.94,799.78,1.12174398]
[1754814611892,0.62144292,801.93,799.78,1.12174398]
[1754814612092,0.62144292,801.92,799.78,1.12174398]
[1754814612388,0.62144292,801.91,799.78,1.12174398]
[1754814612691,0.62144292,801.9,799.78,1.12174398]
[1754814612892,0.62144292,801.89,799.56,0.5]
[1754814613092,0.62144292,801.88,799.56,0.5]
[1754814613294,2.73869967,801.73,799.56,0.5]
[1754814613491,0.62144292,801.72,799.56,0.5]
[1754814613694,0.62144292,801.71,799.56,0.5]
[1754814613890,0.62144292,801.7,799.56,0.5]
[1754814614096,0.62144292,801.69,799.56,0.5]
[1754814614293,0.62144292,801.68,799.56,0.5]
[1754814614596,0.62144292,801.67,799.56,0.5]
[1754814614795,2.73869967,801.87,799.56,0.5]
[1754814614796,0.62144292,801.66,799.56,0.5]
[1754814614996,0.62144292,801.65,799.57,1.12]
[1754814615193,0.62144292,801.64,799.57,1.12]
[1754814615396,0.62144292,801.63,799.57,1.12]
[1754814615597,0.62144292,801.62,799.57,1.12]
[1754814615895,0.62144292,801.61,799.57,1.12]
[1754814616097,0.62144292,801.6,799.57,1.12]
[1754814616293,0.62144292,801.59,799.57,1.12]
[1754814616493,0.62144292,801.58,799.57,1.12]
[1754814616694,2.73869967,801.78,799.57,1.12]
[1754814616898,0.62185865,801.77,799.57,1.12]
[1754814617194,0.62185865,801.76,799.57,1.12]
[1754814617397,0.62185865,801.75,799.57,1.12]
[1754814617594,0.62185865,801.74,799.57,1.12]
[1754814617895,0.62185865,801.73,799.57,1.12]
[1754814618094,0.62185865,801.72,799.57,1.12]
[1754814618296,0.62185865,801.71,799.57,1.12]
[1754814618494,0.62185865,801.7,799.57,1.12]
[1754814618696,0.62185865,801.69,799.57,1.12]
[1754814618895,0.62185865,801.68,799.57,1.12]
[1754814619096,0.62185865,801.67,799.57,1.12]
[1754814619301,0.62185865,801.66,799.57,1.12]
[1754814619500,0.62185865,801.65,799.57,1.12]
[1754814619801,0.62185865,801.64,799.57,1.12]
[1754814619998,0.62185865,801.63,799.57,1.12]
[1754814620201,1.67664542,800.8,799.57,1.12]
[1754814622299,1.67664542,800.79,799.57,1.12]
[1754814622700,1.67664542,800.94,799.57,1.12]
[1754814623303,1.67664542,800.84,799.57,1.12]
[1754814623505,1.67664542,800.83,799.57,1.12]
[1754814623705,1.67664542,800.85,799.57,1.12]
[1754814623906,1.67664542,800.81,799.57,1.12]
[1754814624406,1.67664542,800.8,799.57,1.12]
[1754814624901,1.67664542,800.89,799.57,1.12]
[1754814625405,1.67664542,800.88,799.57,1.12]
[1754814626304,1.67664542,800.87,799.57,1.12]
[1754814627504,1.67664542,800.86,799.57,1.12]
[1754814628010,1.67664542,800.87,799.57,1.12]
[1754814628504,2.73869967,801.64,799.57,1.12]
[1754814628505,1.67664542,800.86,799.57,1.12]
[1754814629307,1.67664542,800.83,799.57,1.12]
[1754814629511,1.67664542,800.84,799.57,1.12]
[1754814629908,1.67664542,800.85,799.57,1.12]
[1754814630115,1.11952613,800.66,799.57,1.12]
[1754814630613,1.11952613,800.8,799.57,1.12]
[1754814630815,1.11952613,800.76,799.59,1.12174398]
[1754814631213,1.11952613,800.65,799.67,1.12174398]
[1754814631412,1.67664542,800.8,799.67,1.12174398]
[1754814631611,1.67664542,800.75,799.7,1.12174398]
[1754814631815,1.67664542,800.78,799.74,1.12174398]
[1754814632110,1.67664542,801.09,799.75,0.70278685]
[1754814632311,1.67664542,801.1,799.76,0.70278685]
[1754814632616,1.67664542,800.99,799.77,0.70278685]
[1754814632816,1.67664542,801.12,799.9,1.12174398]
[1754814633016,1.67664542,801.12,799.91,0.70278685]
[1754814633212,1.67664542,801.02,799.95,1.12174398]
[1754814633418,1.67664542,801.02,799.96,0.70278685]
[1754814633615,1.67664542,801.05,799.98,1.12174398]
[1754814633813,1.67664542,801.05,799.99,0.70278685]
[1754814634018,1.67664542,801.05,800.0,0.70278685]
[1754814634215,1.67664542,801.05,800.01,0.70278685]
[1754814634414,1.67664542,801.03,800.02,0.70278685]
[1754814634717,1.67664542,801.03,800.03,0.70278685]
[1754814635012,1.67664542,801.18,800.04,0.70278685]
[1754814635218,1.67664542,801.18,800.05,0.70278685]
[1754814635414,1.67664542,801.19,800.06,0.70278685]
[1754814635717,1.67664542,801.19,800.07,0.70278685]
[1754814636013,1.67664542,801.2,800.08,0.70278685]
[1754814636317,1.67664542,801.21,800.09,0.70278685]
[1754814636617,1.67664542,801.06,800.1,0.70278685]
[1754814636814,1.67664542,801.06,800.11,0.70278685]
[1754814637117,1.67664542,801.07,800.12,0.70278685]
[1754814637313,1.67664542,801.08,800.13,0.70278685]
[1754814637517,1.67664542,801.08,800.14,0.70278685]
[1754814637813,1.67664542,801.08,800.15,0.70278685]
[1754814638018,1.67664542,801.08,800.16,0.70278685]
[1754814638213,1.67664542,801.09,800.17,0.70278685]
[1754814638518,1.67664542,801.09,800.18,0.70278685]
[1754814638718,1.67664542,801.09,800.19,0.70278685]
[1754814638919,1.67664542,801.09,800.2,0.70278685]
[1754814639118,1.67664542,801.09,799.97,1.12174398]
[1754814639119,1.67664542,801.09,800.21,0.70278685]
[1754814639318,1.67664542,801.09,800.22,0.70278685]
[1754814639518,1.67664542,801.09,800.23,0.70278685]
[1754814639716,1.67664542,801.09,800.24,0.70278685]
[1754814639914,1.67664542,801.09,800.25,0.70278685]
[1754814640216,1.67664542,801.1,800.26,0.70278685]
[1754814640415,1.67664542,801.1,800.27,0.70278685]
[1754814640620,1.67664542,801.1,800.28,0.70278685]
[1754814640820,1.67664542,801.12,800.29,0.70278685]
[1754814641018,1.67664542,801.15,800.3,0.70278685]
[1754814641216,1.67664542,801.24,800.31,0.70278685]
[1754814641422,1.67664542,801.28,800.32,0.70278685]
[1754814641619,1.67664542,801.28,800.33,0.70278685]
[1754814641822,1.67664542,801.3,800.34,0.70278685]
[1754814642123,1.67664542,801.3,800.35,0.70278685]
[1754814642323,1.67664542,801.31,800.36,0.70278685]
[1754814642623,2.73869967,801.96,800.37,0.70278685]
[1754814642624,1.67664542,801.36,800.37,0.70278685]
[1754814642819,1.67664542,801.23,799.81,1.12174398]
[1754814643017,1.67664542,801.23,799.82,1.82235134]
[1754814643219,1.67664542,801.25,799.83,0.70060736]
[1754814643723,1.67664542,801.24,799.83,0.70060736]
[1754814644324,1.67664542,801.24,799.83,1.82235134]
[1754814644523,1.67664542,801.25,799.84,0.70060736]
[1754814645024,1.67664542,801.25,799.85,0.70060736]
[1754814645221,1.67664542,801.25,799.86,0.70060736]
[1754814645420,1.67664542,801.21,799.87,0.70060736]
[1754814645724,1.67664542,801.21,799.88,0.70060736]
[1754814646024,1.67664542,801.21,799.81,0.5]
[1754814646025,1.67664542,801.21,799.89,0.70060736]
[1754814646225,1.67664542,801.16,799.81,0.5]
[1754814649820,1.67664542,801.22,799.81,0.5]
[1754814651125,1.67664542,801.25,799.81,0.5]
[1754814651525,1.67664542,801.16,799.81,0.5]
[1754814652723,1.67664542,801.42,799.91,1.12174398]
[1754814653725,1.67664542,801.39,799.93,1.12174398]
[1754814654523,1.67664542,801.41,799.91,1.12174398]
[1754814655023,1.67664542,801.42,799.92,1.12174398]
[1754814655222,1.67664542,801.41,799.92,1.12174398]
[1754814656222,1.67664542,801.5,799.94,1.12174398]
[1754814656423,1.67664542,801.52,799.97,1.12174398]
[1754814656622,1.67664542,801.52,799.81,0.5]
[1754814656623,1.67664542,801.52,799.96,1.12174398]
[1754814657626,1.67664542,801.54,799.96,1.12174398]
[1754814658123,1.67664542,801.55,799.96,1.12174398]
[1754814658924,1.67664542,801.55,799.97,1.748]
[1754814659324,1.67664542,801.53,799.97,2.86974398]
[1754814659529,1.67664542,801.55,799.97,1.748]
[1754814659924,1.67664542,801.57,799.97,1.748]
[1754814660328,5.47739934,803.27,800.02,1.12174398]
[1754814660329,1.67664542,801.5,800.02,1.12174398]
[1754814660624,1.67664542,801.51,800.04,1.12174398]
[1754814660826,1.67664542,801.52,800.04,1.12174398]
[1754814661027,1.67664542,801.51,800.04,1.12174398]
[1754814661523,1.1157393,801.35,800.04,1.12174398]
[1754814661824,1.1157393,801.35,800.05,1.12174398]
[1754814662227,1.1157393,801.35,800.04,1.12174398]
[1754814662829,1.1157393,801.07,799.97,1.748]
[1754814664129,1.1157393,801.11,799.97,1.748]
[1754814664329,1.1157393,801.09,799.97,1.748]
[1754814666626,1.1157393,801.08,799.97,1.748]
[1754814668328,1.1157393,801.07,799.97,1.748]
[1754814668827,1.1157393,801.08,799.97,1.748]
[1754814669031,1.1157393,801.03,799.97,1.748]
[1754814670833,1.1157393,801.02,799.97,1.748]
[1754814672938,1.1157393,801.03,799.97,1.748]
[1754814673538,1.1157393,801.08,799.97,1.748]
[1754814674737,1.1157393,801.09,799.97,1.748]
[1754814675833,1.1157393,801.1,799.97,1.748]
[1754814676534,1.1157393,801.11,799.97,1.748]
[1754814676937,1.1157393,801.18,799.97,1.748]
[1754814677435,1.1157393,801.17,799.97,1.748]
[1754814677640,1.1157393,801.18,799.97,1.748]
[1754814678235,1.1157393,801.17,799.97,1.748]
[1754814680443,1.1157393,801.16,799.97,1.748]
[1754814682243,1.1157393,801.15,799.97,1.748]
[1754814682745,1.1157393,801.19,799.97,1.748]
[1754814682945,1.67664542,801.39,799.97,1.748]
[1754814682946,1.1157393,801.2,799.97,1.748]
[1754814683245,1.1157393,801.17,799.97,1.748]
[1754814684242,1.1157393,801.16,799.97,1.748]
[1754814685245,1.1157393,801.15,799.97,1.748]
[1754814685842,1.1157393,801.14,799.97,1.748]
[1754814686341,1.1157393,801.13,799.97,2.86974398]
[1754814686945,1.1157393,801.06,800.03,1.12174398]
[1754814687143,1.1157393,801.08,800.01,1.12174398]
[1754814687342,1.1157393,801.08,800.02,1.12174398]
[1754814687546,1.1157393,801.06,800.03,1.12174398]
[1754814687841,1.67664542,801.21,800.04,1.12174398]
[1754814688045,1.67664542,801.2,800.04,1.12174398]
[1754814688241,1.67664542,801.2,800.05,0.6957544]
[1754814688446,1.67664542,801.22,800.07,1.12174398]
[1754814688646,1.67664542,801.22,800.08,0.6957544]
[1754814689246,1.67664542,801.21,800.08,1.81749838]
[1754814689546,1.67664542,801.21,800.09,0.6957544]
[1754814690045,1.67664542,801.2,800.09,1.81749838]
[1754814690246,1.67664542,801.19,800.1,1.81749838]
[1754814690542,1.67664542,801.19,800.11,0.6957544]
[1754814691146,1.67664542,801.18,800.11,1.81749838]
[1754814691345,1.67664542,801.17,800.12,0.6957544]
[1754814691549,1.67664542,801.25,800.12,0.6957544]
[1754814691845,1.67664542,801.28,800.13,0.6957544]
[1754814692144,1.67664542,801.4,800.14,0.6957544]
[1754814692344,1.67664542,801.41,800.15,0.6957544]
[1754814692548,1.67664542,801.41,800.16,0.6957544]
[1754814692743,1.67664542,801.41,800.17,0.6957544]
[1754814692944,1.67664542,801.61,800.33,1.12174398]
[1754814693150,1.67664542,801.72,800.34,0.6957544]
[1754814693345,1.67664542,801.73,800.35,0.6957544]
[1754814693545,1.67664542,801.73,800.36,0.6957544]
[1754814693749,1.67664542,801.73,800.37,0.6957544]
[1754814693949,1.67664542,801.73,800.38,0.6957544]
[1754814694146,1.67664542,801.73,800.39,0.6957544]
[1754814694349,1.67664542,801.77,800.4,0.6957544]
[1754814694651,1.67664542,801.79,800.41,0.6957544]
[1754814694851,1.67664542,801.79,800.42,0.6957544]
[1754814695049,1.67664542,801.79,800.43,0.6957544]
[1754814695247,1.67664542,801.81,800.44,0.6957544]
[1754814695452,1.67664542,801.81,800.45,0.6957544]
[1754814695650,1.67664542,801.81,800.46,0.6957544]
[1754814695849,1.67664542,801.81,800.47,0.6957544]
[1754814696053,1.67664542,801.8,800.48,0.6957544]
[1754814696251,1.67664542,801.8,800.49,0.6957544]
[1754814696454,1.67664542,801.81,800.5,0.6957544]
[1754814696651,1.67664542,801.81,800.51,0.6957544]
[1754814696855,1.67664542,801.81,800.52,0.6957544]
[1754814697054,1.67664542,801.81,800.53,0.6957544]
[1754814697256,1.67664542,801.79,800.54,0.6957544]
[1754814697554,1.67664542,801.79,800.55,0.6957544]
[1754814697751,1.67664542,801.85,800.56,0.6957544]
[1754814698056,1.67664542,801.85,800.57,0.6957544]
[1754814698253,1.67664542,801.85,800.58,0.6957544]
[1754814698557,1.67664542,801.85,800.59,0.6957544]
[1754814698855,1.67664542,801.87,800.6,0.6957544]
[1754814699054,1.67664542,801.87,800.61,0.6957544]
[1754814699354,1.67664542,801.88,800.62,0.6957544]
[1754814699554,1.67664542,801.88,800.63,0.6957544]
[1754814699857,1.67664542,801.88,800.64,0.6957544]
[1754814700052,1.67664542,801.87,800.65,0.6957544]
[1754814700253,1.67664542,801.87,800.66,0.6957544]
[1754814700456,1.67664542,801.87,800.67,0.6957544]
[1754814700655,1.67664542,801.85,800.68,0.6957544]
[1754814700854,1.67664542,801.85,800.69,0.6957544]
[1754814701057,1.67664542,801.85,800.55,1.105]
[1754814701058,1.67664542,801.85,800.7,0.6957544]
[1754814701354,1.67664542,801.86,800.71,0.6957544]
[1754814701556,1.67664542,801.86,800.72,0.6957544]
[1754814701756,1.67664542,801.86,800.73,0.6957544]
[1754814701955,1.67664542,801.86,800.74,0.6957544]
[1754814702158,1.67664542,801.86,800.75,0.6957544]
[1754814702359,1.67664542,801.86,800.76,0.6957544]
[1754814702559,1.67664542,801.86,800.77,0.6957544]
[1754814702760,1.67664542,801.86,800.55,1.105]
[1754814702761,1.67664542,801.44,800.55,1.105]
[1754814703356,1.67664542,801.45,800.55,1.105]
[1754814704860,1.67664542,801.46,800.55,1.105]
[1754814705462,1.67664542,801.47,800.55,1.105]
[1754814707862,1.67664542,801.42,800.55,1.105]
[1754814708160,1.67664542,801.56,800.55,1.105]
[1754814708359,1.67664542,801.58,800.55,1.105]
[1754814708562,1.67664542,801.6,800.56,0.69386642]
[1754814708863,1.67664542,801.58,800.55,1.105]
[1754814709059,1.67664542,801.58,800.56,0.69394402]
[1754814709263,1.67664542,801.58,800.55,1.105]
[1754814709563,1.67664542,801.58,800.56,0.69397993]
[1754814709765,1.67664542,801.58,800.55,1.105]
[1754814710065,1.67664542,801.58,800.56,0.69415413]
[1754814710260,1.67664542,801.58,800.55,1.105]
[1754814710461,1.67664542,801.58,800.56,0.69411861]
[1754814710764,1.67664542,801.58,800.55,1.105]
[1754814710964,1.67664542,801.58,800.56,0.69411871]
[1754814711165,1.67664542,801.58,800.55,1.105]
[1754814711464,1.67664542,801.59,800.55,1.105]
[1754814712162,1.67664542,801.57,800.55,1.105]
[1754814712761,1.67664542,801.68,800.56,0.69395352]
[1754814712966,1.67664542,801.68,800.57,0.69395352]
[1754814713264,1.67664542,801.68,800.58,0.69395352]
[1754814713464,1.67664542,801.68,800.59,0.69395352]
[1754814713762,1.67664542,801.68,800.6,0.69395352]
[1754814714067,1.67664542,801.68,800.61,0.69395352]
[1754814714267,1.67664542,801.68,800.62,0.69395352]
[1754814714465,1.67664542,801.69,800.63,0.69395352]
[1754814714768,1.67664542,801.68,800.64,0.69395352]
[1754814715068,1.67664542,801.68,800.55,1.105]
[1754814715271,1.67664542,801.68,800.56,0.69396863]
[1754814715471,1.67664542,801.68,800.57,0.69396863]
[1754814715671,1.67664542,801.68,800.58,0.69396863]
[1754814715972,1.67664542,801.68,800.59,0.69396863]
[1754814716169,1.67664542,801.68,800.6,0.69396863]
[1754814716369,1.67664542,801.68,800.61,0.69396863]
[1754814716567,0.21694746,802.54,800.62,0.69396863]
[1754814716568,1.67664542,801.7,800.62,0.69396863]
[1754814716772,1.67664542,801.7,800.63,0.69396863]
[1754814716972,1.67664542,801.7,800.64,0.69396863]
[1754814717172,1.67664542,801.7,800.65,0.69396679]
[1754814717370,1.67664542,801.7,800.55,1.105]
[1754814717669,1.67664542,801.7,800.56,0.69396024]
[1754814717973,1.67664542,801.7,800.57,0.69396024]
[1754814718170,1.67664542,801.57,800.58,0.69396024]
[1754814718375,1.67664542,801.57,800.59,0.69396024]
[1754814718673,1.67664542,801.55,800.6,0.69396024]
[1754814718873,1.67664542,801.55,800.61,0.69396024]
[1754814719171,1.67664542,801.55,800.55,1.105]
[1754814719371,1.67664542,801.55,800.56,0.69390953]
[1754814719570,1.67664542,801.55,800.57,0.69390953]
[1754814719774,1.67664542,801.55,800.58,0.69390953]
[1754814719971,1.67664542,801.55,800.59,0.69390953]
[1754814720171,1.67664542,801.55,800.6,0.69390953]
[1754814720474,1.67664542,801.56,800.61,0.69390953]
[1754814720774,1.67664542,801.56,800.62,0.69390953]
[1754814721074,1.67664542,801.56,800.55,1.105]
[1754814721271,1.67664542,801.56,800.56,0.69398589]
[1754814721475,1.67664542,801.56,800.57,0.69398589]
[1754814721675,1.67664542,801.56,800.58,0.69398589]
[1754814721875,1.67664542,801.5,800.59,0.69398589]
[1754814722073,1.67664542,801.85,800.6,0.69398589]
[1754814722273,1.67664542,801.85,800.61,0.69398589]
[1754814722572,1.67664542,801.88,800.62,0.69398589]
[1754814722873,1.67664542,801.85,800.63,0.69398589]
[1754814723075,1.67664542,801.86,800.64,0.69398589]
[1754814723269,1.67664542,801.86,800.65,0.69398589]
[1754814723472,1.67664542,801.86,800.66,0.69398589]
[1754814723777,1.67664542,801.86,800.67,0.69398589]
[1754814723971,1.67664542,801.86,800.68,0.69398589]
[1754814724173,1.67664542,801.86,800.69,0.69398589]
[1754814724374,3.83417953,803.35,800.7,0.69398589]
[1754814724375,1.67664542,801.88,800.7,0.69398589]
[1754814724574,1.67664542,801.88,800.71,0.69398589]
[1754814724876,1.67664542,801.88,800.72,0.69398589]
[1754814725077,1.67664542,801.89,800.73,0.69398589]
[1754814725373,1.67664542,801.89,800.55,1.105]
[1754814725577,1.67664542,801.89,800.56,0.69346329]
[1754814725874,1.67664542,801.89,800.57,0.69346329]